[Event "17th Paracin Open 2024"]
[Site "Paracin"]
[Date "2024.07.06"]
[Round "5.7"]
[White "Tippa, Aswath Srisai"]
[Black "Bryakin, Mikhail"]
[Result "1/2-1/2"]
[ECO "B19"]
[WhiteElo "1647"]
[BlackElo "2469"]
[Annotator "TA"]
[PlyCount "149"]
[EventDate "2024.07.02"]
[EventType "swiss"]
[EventCountry "SRB"]
[SourceTitle "playchess.com"]
[Source "ChessBase"]
[SourceQuality "1"]
[TimeControl "5400+30"]

{[%evp 25,149,18,28,30,30,16,36,37,29,26,57,59,64,33,38,27,40,-3,0,0,-11,0,-12,-15,0,-66,-17,-22,-19,-19,-4,-14,-4,-1,-2,-2,0,0,0,0,0,0,0,0,0,0,0,0,0,0,17,0,0,0,25,0,8,16,78,78,125,108,183,114,110,105,125,126,132,125,191,183,178,195,194,133,137,114,118,116,118,118,134,115,131,128,139,92,125,112,98,98,166,141,190,73,138,85,554,507,379,41,41,8,8,8,8,8,8,8,8,8,8,0,8,8,8,8,8,8,8,8,8,0,0,0]} 1. e4 {[%emt 0:01:54]} c6 {[%emt 0:00:04]} 2. d4 {[%emt 0:00:22]} d5 {[%emt 0:00:03]} 3. Nc3 {[%emt 0:00:06]} dxe4 {[%emt 0:00:04]} 4. Nxe4 {[%emt 0:00:07]} Bf5 {[%emt 0:00:01]} 5. Ng3 {[%emt 0:00:11]} Bg6 {[%emt 0:00:03]} 6. h4 {[%emt 0:00:19]} h6 {[%emt 0:00:03]} 7. Nf3 {[%emt 0:00:06]} Nd7 {[%emt 0:00:03]} 8. Bd3 {[%emt 0:00:40]} Bxd3 {[%emt 0:00:08]} 9. Qxd3 {[%emt 0:00:05]} e6 {[%emt 0:00:21]} 10. Bf4 $1 {[%emt 0:00:07] 10.Bf4 scores better than 10.Bd2.} Qa5+ {[%emt 0:00:23] B19: Classical Caro-Kann: 4...Bf5 main line.} 11. Bd2 {[%emt 0:00:26]} Bb4 {[%emt 0:00:21]} 12. Ne4 {[%emt 0:00:07]} Ngf6 {[%emt 0:02:13]} 13. Nd6+ {[%emt 0:00:09]} Ke7 {[%emt 0:00:11]} 14. Nxb7 {[%emt 0:00:07]} Bxd2+ $1 {[%emt 0:06:39]} 15. Nxd2 {[%emt 0:00:07]} Qb4 {[%emt 0:00:18]} 16. Qb3 $1 {[%emt 0:00:09]} Qxd4 {[%emt 0:01:46]} 17. O-O-O $1 {[%emt 0:00:08]} Rhb8 {[%emt 0:02:25]} 18. Qa3+ $1 {[%emt 0:00:18]} c5 $1 {[%emt 0:01:26]} 19. Na5 {[%emt 0:00:07]} Rc8 {[%emt 0:01:03]} 20. Ndc4 {[%emt 0:21:46]} Qf4+ {[%emt 0:07:30]} 21. Rd2 $146 {[%emt 0:08:35]} ({Predecessor:} 21. Kb1 Nb6 22. Nd6 Rc7 23. Nb5 Rcc8 24. Nd4 Nfd5 25. Nac6+ Kf6 26. Qxc5 Na4 27. Qa3 Rab8 28. Nxb8 Rxb8 29. Nb3 Nac3+ 30. bxc3 Nxc3+ 31. Ka1 {1-0 Kutowski,M (1914)-Rzenca,J (1586) POL-ch U16 Sypniewo 2022 (5)}) 21... Nb6 {[%emt 0:05:30]} 22. Nd6 {[%emt 0:06:09]} Ne4 $1 {[%emt 0:01:15]} 23. Nxe4 {[%emt 0:04:30]} Qxe4 {[%emt 0:00:10]} 24. Rdd1 {[%emt 0:20:37]} Nd5 {[%emt 0:06:35]} 25. f3 {[%emt 0:09:05]} (25. g3 $11) 25... Qb4 {[%emt 0:06:15]} (25... Qf4+ $15 26. Rd2 Kf8) 26. Qxb4 $1 $11 {[%emt 0:00:57]} cxb4 {[%emt 0:01:04]} 27. Rhe1 {[%emt 0:00:09]} Kf6 {[%emt 0:00:30]} 28. Rd4 {[%emt 0:00:38]} g5 {[%emt 0:03:08]} 29. Nc4 {[%emt 0:02:12]} a5 {[%emt 0:02:42]} 30. a4 {[%emt 0:04:03]} Rc5 {[%emt 0:02:29]} 31. Nd2 {[%emt 0:04:01]} Rc6 {[%emt 0:01:15]} 32. hxg5+ {[%emt 0:01:10]} hxg5 {[%emt 0:00:49]} 33. Rc4 {[%emt 0:00:50]} Rxc4 {[%emt 0:10:26]} 34. Nxc4 {[%emt 0:00:07]} Rc8 {[%emt 0:00:11]} 35. b3 {[%emt 0:02:07]} Rc5 {[%emt 0:00:39]} 36. Nd6 {[%emt 0:01:23]} Rc6 {[%emt 0:01:26]} 37. Nc4 {[%emt 0:00:30]} Ra6 {[%emt 0:02:11]} 38. g3 {[%emt 0:00:55]} Nb6 {[%emt 0:05:59]} 39. Re4 {[%emt 0:01:19]} Nd5 {[%emt 0:00:43]} 40. Re1 {[%emt 0:00:19]} Ra8 {[%emt 0:00:26]} 41. Kd2 {[%emt 0:00:54]} Nc3 {[%emt 0:00:24]} (41... Ke7 $11) 42. Ke3 $1 $16 {[%emt 0:01:20]} e5 {[%emt 0:01:43]} ({Better is} 42... Ke7) 43. Kf2 $16 {[%emt 0:01:18]} Rh8 {[%emt 0:04:56]} (43... Rc8 $16) 44. Kg2 {[%emt 0:01:26]} (44. Nxe5 Rh2+ 45. Kf1 Rh1+ (45... Rxc2 46. Nc4 $14) 46. Kf2 Rh2+ (46... Rxe1 $2 47. Ng4+ Ke6 48. Kxe1 $18) 47. Kf1 Rxc2 $15 (47... Rh1+ 48. Kf2 $11)) (44. Rxe5 $18 Rh2+ 45. Ke3) 44... Rc8 $16 {[%emt 0:02:22]} 45. Nxe5 {[%emt 0:01:49]} (45. Rxe5 $2 Rxc4 46. f4 gxf4 47. Rxa5 Rc6 48. gxf4 Nb1 $19) 45... Rc7 {[%emt 0:00:59]} 46. Ng4+ {[%emt 0:00:18]} Kg6 {[%emt 0:00:22]} 47. Kh3 {[%emt 0:03:06]} Na2 {[%emt 0:14:10]} (47... f5 $16 {keeps fighting.}) 48. Ne5+ $18 {[%emt 0:00:12]} Kf6 {[%emt 0:00:41]} 49. Nc4 {[%emt 0:00:57]} Rc5 {[%emt 0:00:12]} 50. Re8 {[%emt 0:01:28]} ({White should try} 50. Kg4 $18) 50... Nc3 $16 {[%emt 0:00:02]} 51. Ra8 {[%emt 0:00:13]} Nxa4 {[%emt 0:00:33]} 52. Ra6+ $1 {[%emt 0:00:08]} (52. bxa4 $6 Rxc4 53. Rxa5 g4+ 54. fxg4 Rxc2 $11) 52... Kg7 {[%emt 0:00:26]} 53. Rxa5 {[%emt 0:02:19]} (53. bxa4 Rxc4 54. f4 (54. Rxa5 g4+ 55. fxg4 Rxc2 $11) 54... gxf4 (54... Rxc2 55. Rxa5 gxf4 56. Rg5+ Kh6 57. gxf4 $11) 55. gxf4 Rxc2 $11 (55... Rxf4 56. Rxa5 Rc4 57. Rb5 $11)) 53... Rxa5 {[%emt 0:00:06]} 54. Nxa5 {[%emt 0:00:02]} Nc3 {[%emt 0:00:08] [#]} 55. Kg2 $1 {[%emt 0:00:27]} Kf6 {[%emt 0:02:12]} 56. Kf2 {[%emt 0:00:12]} (56. Nc6 $142 Nd5 57. Kf2) 56... Ke6 {[%emt 0:00:21]} 57. Ke3 {[%emt 0:01:20]} Kd5 {[%emt 0:00:16]} 58. Nc4 {[%emt 0:01:24]} Nb5 {[%emt 0:01:16]} (58... f5 $16 59. Nb6+ Ke5) 59. Kd3 $18 {[%emt 0:00:31]} f5 {[%emt 0:02:06]} (59... f6 $16 60. Ne3+ Kc5) 60. Nb6+ {[%emt 0:02:10]} (60. Ne3+ $18 {is more deadly.} Ke5 61. Nc4+ Kd5 62. Ne3+ Ke5 63. Nc4+ Kd5) 60... Kc6 {[%emt 0:00:14] [#]} (60... Kd6 $142 61. Nc4+ Kc5) 61. Na4 $1 $16 {[%emt 0:00:25]} g4 $2 {[%emt 0:00:55][%mdl 8192]} (61... Kd6 $16 {is more resistant.}) 62. fxg4 $18 {[%emt 0:01:44]} fxg4 {[%emt 0:00:00]} 63. Ke3 $2 {[%emt 0:00:41]} (63. Nb2 $18) 63... Na3 $14 {[%emt 0:04:10]} 64. c3 {[%emt 0:00:34]} Kb5 {[%emt 0:00:37]} 65. Kd3 {[%emt 0:00:21]} bxc3 {[%emt 0:00:14]} 66. Kxc3 {[%emt 0:00:03]} Ka5 {[%emt 0:00:40]} 67. Nc5 {[%emt 0:01:01]} Nb5+ {[%emt 0:00:04]} 68. Kc4 {[%emt 0:00:21]} Nd6+ {[%emt 0:00:14]} 69. Kc3 {[%emt 0:00:28]} Kb5 {[%emt 0:00:35]} 70. b4 {[%emt 0:00:03]} Nf5 {[%emt 0:00:15]} 71. Ne4 {[%emt 0:00:07]} Kb6 {[%emt 0:00:22]} 72. Kc4 {[%emt 0:00:24]} Ne3+ {[%emt 0:00:08]} 73. Kd4 {[%emt 0:00:22]} Nf5+ {[%emt 0:00:07]} 74. Kc3 {[%emt 0:00:51]} Kb5 {[%emt 0:00:15]} 75. Nf2 {[%emt 0:01:05]} 1/2-1/2

[Event "17th Paracin Open 2024"]
[Site "Paracin"]
[Date "2024.07.06"]
[Round "5.8"]
[White "Tanriverdi, Enes"]
[Black "Atalik, Suat"]
[Result "1/2-1/2"]
[ECO "D37"]
[WhiteElo "2371"]
[BlackElo "2450"]
[Annotator "TA"]
[PlyCount "102"]
[EventDate "2024.07.02"]
[EventType "swiss"]
[EventCountry "SRB"]
[SourceTitle "playchess.com"]
[Source "ChessBase"]
[SourceQuality "1"]
[TimeControl "5400+30"]

{[%evp 9,102,18,29,25,30,26,26,32,32,25,18,3,14,2,9,0,0,0,0,0,0,-6,0,-16,-18,-28,-24,-17,-16,-11,0,0,-10,-2,1,0,11,16,4,14,11,8,22,0,14,10,26,19,22,22,18,0,0,0,11,3,9,8,3,0,0,2,6,0,0,0,0,0,0,0,0,0,0,-8,-8,-8,17,17,25,25,25,25,29,26,26,26,66,0,0,0,0,0,0,0,0]} 1. d4 {[%emt 0:00:50]} d5 {[%emt 0:00:17]} 2. c4 {[%emt 0:00:10]} e6 {[%emt 0:00:18]} 3. Nc3 {[%emt 0:00:07]} a6 {[%emt 0:00:53]} 4. cxd5 {[%emt 0:01:38]} exd5 {[%emt 0:00:07]} 5. Nf3 {[%emt 0:01:31]} Nf6 {[%emt 0:00:56]} 6. Bg5 {[%emt 0:03:33]} Be6 {[%emt 0:00:18]} 7. e3 {[%emt 0:00:30]} Bd6 {[%emt 0:02:08]} 8. Bd3 {[%emt 0:00:15] White has an edge.} Nbd7 {[%emt 0:00:55]} 9. Qc2 {[%emt 0:05:47]} Qb8 {[%emt 0:05:23]} 10. O-O {[%emt 0:05:10]} c6 {[%emt 0:03:05]} 11. Rfe1 {[%emt 0:02:00]} O-O {[%emt 0:04:27]} 12. e4 {[%emt 0:14:37]} dxe4 {[%emt 0:01:35]} 13. Nxe4 {[%emt 0:00:44]} Nxe4 {[%emt 0:00:48]} 14. Bxe4 {[%emt 0:00:25]} h6 {[%emt 0:01:31]} 15. Bh4 {[%emt 0:00:54]} Re8 {[%emt 0:04:03]} 16. Bh7+ {[%emt 0:01:10]} Kh8 {[%emt 0:00:38]} 17. Bf5 {[%emt 0:00:20]} Nf8 $1 {[%emt 0:00:13]} 18. Bxe6 {[%emt 0:02:23]} Rxe6 {[%emt 0:02:01]} 19. Qf5 {[%emt 0:03:01]} Qe8 {[%emt 0:00:33]} 20. d5 {[%emt 0:01:26]} cxd5 {[%emt 0:05:30]} 21. Qxd5 {[%emt 0:00:16]} Qb5 {[%emt 0:02:51]} 22. Rad1 {[%emt 0:04:56] [#] Rxe6 is the strong threat.} (22. Red1 {simplifies} Qxd5 23. Rxd5 Bc7 24. Kf1) 22... Rxe1+ {[%emt 0:05:54]} 23. Nxe1 {[%emt 0:00:17] Strongly threatening Qxb5.} Qxd5 {[%emt 0:00:21]} 24. Rxd5 {[%emt 0:00:05]} Re8 {[%emt 0:00:08]} 25. Nd3 {[%emt 0:01:20]} Bc7 {[%emt 0:03:00]} 26. Bg3 {[%emt 0:00:51]} Bb6 {[%emt 0:05:30]} 27. Kf1 {[%emt 0:02:10]} Rc8 {[%emt 0:07:39]} 28. Ke2 {[%emt 0:00:21]} f6 {[%emt 0:05:31]} 29. Kd2 {[%emt 0:03:15]} Kg8 {[%emt 0:01:18]} 30. b4 {[%emt 0:01:18]} Kf7 {[%emt 0:05:26]} 31. a4 {[%emt 0:00:43][%cal Ba2a4,Ba4a5][%mdl 32]} Rc4 {[%emt 0:00:42]} 32. a5 {[%emt 0:00:45]} Rd4 $1 {[%emt 0:00:36]} 33. Rd6 {[%emt 0:01:09]} Ba7 {[%emt 0:00:48]} 34. Kc3 {[%emt 0:00:52]} Rxd6 {[%emt 0:00:57]} 35. Bxd6 $11 {[%emt 0:00:04][%mdl 4096] Endgame. KBN-KBN} Nd7 {[%emt 0:00:05]} 36. Kc4 {[%emt 0:01:29]} Ke6 {[%emt 0:00:32]} 37. Bc7 {[%emt 0:00:22]} g5 {[%emt 0:03:53] Prevents Nf4+.} 38. f3 {[%emt 0:00:53]} f5 {[%emt 0:00:54]} 39. Bd8 {[%emt 0:08:23]} Kd6 {[%emt 0:03:48]} 40. h3 {[%emt 0:11:05]} Be3 {[%emt 0:03:40]} 41. g4 {[%emt 0:07:27]} fxg4 {[%emt 0:00:43]} 42. hxg4 {[%emt 0:00:04]} Nf8 {[%emt 0:03:08]} 43. Bf6 {[%emt 0:00:46]} Ng6 {[%emt 0:00:23]} 44. Bg7 {[%emt 0:02:59]} Nh4 {[%emt 0:00:27]} 45. Bf8+ {[%emt 0:00:05]} Ke6 {[%emt 0:05:34]} 46. Nc5+ {[%emt 0:03:02]} (46. Bxh6 Nxf3 47. Nc5+ Kf7 $11) 46... Bxc5 {[%emt 0:00:32]} 47. Kxc5 {[%emt 0:00:06] [#] Threatens to win with Kb6.} Kd7 $1 {[%emt 0:00:18]} 48. Kb6 {[%emt 0:00:36]} ({Much weaker is} 48. Bxh6 Nxf3 49. b5 axb5 $11) ({White should try} 48. Kd5 $14 Nxf3 49. Ke4 (49. Bxh6 Nh2 $11)) 48... Kc8 $1 {[%emt 0:00:07] The position is equal.} 49. Bxh6 {[%emt 0:00:10]} Nxf3 {[%emt 0:00:06]} 50. b5 {[%emt 0:00:27]} axb5 {[%emt 0:00:28]} 51. Kxb5 {[%emt 0:00:05]} Nh2 {[%emt 0:00:17] Weighted Error Value: White=0.05 (flawless) /Black=0.03 (flawless) .  Mistake:       	White=1     	---        OK:         	White=15    	Black=20     Best:        	---       	Black=2      Strong:       	---       	Black=4} 1/2-1/2

[Event "17th Paracin Open 2024"]
[Site "Paracin"]
[Date "2024.07.06"]
[Round "5.9"]
[White "Damljanovic, Branko"]
[Black "Akbas, Umut Ata"]
[Result "0-1"]
[ECO "B50"]
[WhiteElo "2364"]
[BlackElo "2437"]
[Annotator "TA"]
[PlyCount "74"]
[EventDate "2024.07.02"]
[EventType "swiss"]
[EventCountry "SRB"]
[SourceTitle "playchess.com"]
[Source "ChessBase"]
[SourceQuality "1"]
[TimeControl "5400+30"]

{[%evp 9,74,0,12,0,22,16,6,6,4,0,20,12,11,10,11,10,14,6,14,0,0,0,26,5,27,18,45,6,3,8,62,0,0,0,0,-25,0,-71,-72,-84,-75,-69,-72,-104,-96,-106,-94,-77,-87,-101,-109,-177,-177,-345,-341,-348,-350,-448,-441,-435,-444,-624,-616,-709,-709,-706,-704]} 1. e4 {[%emt 0:04:06]} c5 {[%emt 0:00:27]} 2. Nf3 {[%emt 0:00:43]} d6 {[%emt 0:00:09]} 3. Bc4 {[%emt 0:01:03]} Nf6 {[%emt 0:01:12]} 4. d3 {[%emt 0:00:04]} Nc6 {[%emt 0:01:16]} 5. c3 {[%emt 0:01:08]} a6 {[%emt 0:03:01]} 6. Bb3 {[%emt 0:00:09]} g6 {[%emt 0:05:35]} 7. O-O {[%emt 0:00:09]} Bg7 {[%emt 0:00:06]} 8. Re1 {[%emt 0:00:12] The position is equal.} O-O {[%emt 0:00:11]} 9. h3 {[%emt 0:00:07]} e5 {[%emt 0:01:21]} 10. Bg5 {[%emt 0:01:20]} h6 {[%emt 0:01:58]} 11. Bxf6 {[%emt 0:00:04]} Bxf6 {[%emt 0:00:26]} 12. Nbd2 {[%emt 0:00:03]} Bg7 {[%emt 0:02:39]} 13. a3 {[%emt 0:00:25]} Kh8 {[%emt 0:01:08]} 14. Bd5 {[%emt 0:00:17]} Ne7 {[%emt 0:03:50]} 15. Ba2 {[%emt 0:00:07]} a5 {[%emt 0:00:30]} 16. a4 {[%emt 0:10:52]} Nc6 {[%emt 0:04:23]} 17. Nb1 {[%emt 0:02:02]} f5 {[%emt 0:04:13]} 18. Na3 {[%emt 0:03:28]} g5 {[%emt 0:07:12]} 19. Nh2 {[%emt 0:04:51]} g4 {[%emt 0:09:42]} 20. exf5 {[%emt 0:17:51]} (20. hxg4 $14 f4 21. Qf3) 20... gxh3 $11 {[%emt 0:00:36]} 21. g4 {[%emt 0:00:02] Re3 would now be deadly.} Qg5 {[%emt 0:05:51]} 22. Nb5 {[%emt 0:08:31]} Bxf5 {[%emt 0:04:14][%cal Oe5e4] White must now prevent ...e4!} (22... Rxf5 23. Nxd6 Rf8 24. Nf7+ Rxf7 25. Bxf7 $16) 23. Re3 {[%emt 0:09:17]} (23. Nxd6 $11 Bg6 24. Ne4) 23... Rf6 $17 {[%emt 0:08:48]} 24. Rxh3 {[%emt 0:04:13]} Raf8 {[%emt 0:02:58]} 25. Qe2 {[%emt 0:02:34]} Bd7 {[%emt 0:04:25] ...Rxf2 is the strong threat.} 26. Rf1 {[%emt 0:01:29]} Ne7 {[%emt 0:04:50] Prevents Bd5. And now ...Ng6 would win.} 27. Qe3 {[%emt 0:09:30] [#]} Bxg4 $1 {[%emt 0:05:51]} 28. Qxg5 {[%emt 0:09:02]} Bxh3 {[%emt 0:00:17]} 29. Qg3 {[%emt 0:00:02]} Rg6 {[%emt 0:00:30][%cal Of8f6] Hoping for ...Rff6! Really sharp!} (29... Bxf1 $2 30. Kxf1 Rxf2+ 31. Qxf2 Rxf2+ 32. Kxf2 $18) 30. Nxd6 {[%emt 0:00:15]} Rff6 $19 {[%emt 0:06:33]} (30... Rxg3+ 31. fxg3 Bxf1 32. Nxf1) 31. Nf7+ {[%emt 0:03:14]} (31. Ne4 Nf5 (31... Rxg3+ 32. fxg3 Bxf1 33. Nxf6 $11) 32. Nxf6 Nxg3 (32... Rxg3+ 33. fxg3 Bxf1 34. Kxf1 $11) 33. fxg3 Bxf1 (33... Rxf6 34. Rxf6 Bxf6 35. Bd5 $11) (33... Bxf6 34. Rf3 $11) 34. Nxf1 Bxf6 (34... Rxf6 $2 35. Nd2 $19) 35. Bf7) 31... Kh7 {[%emt 0:00:07]} 32. Re1 {[%emt 0:00:03][%cal Of7e5] [#]} (32. Ng4 Rxg4 $19 (32... Bxg4 33. Nxe5 Bf5 34. Nxg6 $19) (32... Bxg4 33. Nxe5 Bf5 34. Nxg6 $19)) 32... Nf5 $1 {[%emt 0:00:59]} (32... Rxg3+ 33. fxg3 Rg6 34. Nf1 $11) 33. Nf1 {[%emt 0:04:07]} Nxg3 {[%emt 0:01:27] Black is clearly winning.} ({Not} 33... Rxg3+ 34. Nxg3 Nxg3 35. fxg3 $11) ({And not} 33... Bxf1 34. Qxg6+ Rxg6+ 35. Kxf1 $16) 34. Nxg3 {[%emt 0:00:02]} Be6 {[%emt 0:01:40]} 35. Bxe6 {[%emt 0:01:12]} (35. Nxe5 $142 Rxg3+ (35... Bxa2 $2 36. Nxg6 Kxg6 37. Ne4 $19) 36. fxg3 Bxa2 37. Re4) 35... Rxe6 {[%emt 0:00:05]} 36. Nd8 {[%emt 0:04:33]} Re7 {[%emt 0:00:22]} 37. Kf1 {[%emt 0:00:04]} Rd7 {[%emt 0:00:06][%csl LRd3,LRd8] Weighted Error Value: White=0.35/Black=0.06 (flawless) .  Mistake:       	White=5     	Black=1      Inaccurate:     	White=2     	Black=2      OK:         	White=8     	Black=11     Best:        	---       	Black=5      Strong:       	---       	Black=1} 0-1

[Event "17th Paracin Open 2024"]
[Site "Paracin"]
[Date "2024.07.06"]
[Round "5.10"]
[White "Radovanovic, Nikola"]
[Black "Pranav K P"]
[Result "1-0"]
[ECO "C49"]
[WhiteElo "2441"]
[BlackElo "2223"]
[Annotator "TA"]
[PlyCount "77"]
[EventDate "2024.07.02"]
[EventType "swiss"]
[EventCountry "SRB"]
[SourceTitle "playchess.com"]
[Source "ChessBase"]
[SourceQuality "1"]
[TimeControl "5400+30"]

{[%evp 27,77,17,43,30,35,38,36,33,38,41,73,68,71,78,124,125,128,128,132,147,120,116,356,335,453,454,458,461,496,481,549,539,869,843,879,830,1076,1004,1147,1069,1164,1125,1434,1411,1662,1647,1601,1389,29991,1187,29997,1447]} 1. e4 {[%emt 0:00:03]} e5 {[%emt 0:00:02]} 2. Nf3 {[%emt 0:00:08]} Nc6 {[%emt 0:00:26]} 3. Bc4 {[%emt 0:00:12]} Bc5 {[%emt 0:00:19]} 4. c3 {[%emt 0:00:12]} Nf6 {[%emt 0:00:07]} 5. d3 {[%emt 0:00:20]} d6 {[%emt 0:00:10]} 6. O-O {[%emt 0:00:38]} h6 {[%emt 0:00:12]} 7. Re1 {[%emt 0:00:26]} O-O {[%emt 0:00:20]} 8. h3 {[%emt 0:00:13]} Bb6 {[%emt 0:00:50]} 9. Bb3 {[%emt 0:02:04]} Re8 {[%emt 0:01:22]} 10. Bc2 {[%emt 0:05:01]} Ne7 {[%emt 0:06:17]} 11. Nbd2 {[%emt 0:02:59][%cal Bb1d2,Bd2f1,Bf1g3][%mdl 32]} c6 {[%emt 0:00:53]} 12. Nf1 {[%emt 0:02:57]} Ng6 {[%emt 0:02:30]} 13. d4 {[%emt 0:05:58]} Be6 {[%emt 0:12:24]} 14. Ng3 {[%emt 0:03:35]} Bc7 {[%emt 0:03:44]} 15. Be3 {[%emt 0:02:40]} Qe7 {[%emt 0:09:06]} 16. Qd2 {[%emt 0:06:58]} Qf8 {[%emt 0:02:00]} 17. Rad1 {[%emt 0:02:37] White is slightly better.} Rad8 {[%emt 0:03:48]} 18. Qc1 {[%emt 0:00:55]} exd4 {[%emt 0:02:14]} 19. cxd4 {[%emt 0:12:04][%cal Bc3d4,Bd4d5][%mdl 32]} Ba5 {[%emt 0:03:59]} 20. Bd2 {[%emt 0:01:41]} Bb6 {[%emt 0:05:59]} (20... Bxd2 $142 21. Qxd2 (21. Nxd2 c5 $16) (21. Rxd2 Nf4 $16) 21... c5) 21. a3 $16 {[%emt 0:06:45][%cal Ba2a3,Ba3a4,Ba4a5][%mdl 32]} c5 {[%emt 0:04:20]} 22. d5 {[%emt 0:01:51]} Bd7 {[%emt 0:01:41]} 23. Bc3 {[%emt 0:00:37]} Ne5 {[%emt 0:00:26]} 24. Nh4 {[%emt 0:06:58]} Bb5 $2 {[%emt 0:01:45] [#]} (24... Rc8 $16 25. Qf4 Bd8) 25. a4 $18 {[%emt 0:00:50]} Ba6 {[%emt 0:01:36]} 26. a5 {[%emt 0:02:21]} Bc7 {[%emt 0:00:03]} 27. f4 {[%emt 0:01:12]} Ng6 {[%emt 0:01:04]} 28. Nhf5 {[%emt 0:01:50]} Ne7 {[%emt 0:02:49] [#]} 29. Nxh6+ $1 {[%emt 0:07:24][%mdl 512]} gxh6 {[%emt 0:00:18]} (29... Kh8 30. Ng4) 30. Bxf6 {[%emt 0:00:08]} Bxa5 {[%emt 0:34:46]} 31. Re3 {[%emt 0:00:41][%cal Be1e3,Be3c3,Bc3g3][%mdl 32]} c4 {[%emt 0:00:00]} 32. Kh1 {[%emt 0:00:45]} Bb6 {[%emt 0:00:00][%cal Ba5b6,Bb6f2,Bf2c5][%mdl 32]} 33. Rc3 {[%emt 0:03:09]} Ng6 {[%emt 0:00:00]} 34. Nh5 {[%emt 0:01:09]} Bf2 {[%emt 0:00:00]} 35. Qd2 {[%emt 0:01:38]} Bc5 {[%emt 0:00:00]} 36. Rg3 {[%emt 0:00:24]} Kh7 {[%emt 0:00:00]} 37. f5 {[%emt 0:00:21]} Rd7 {[%emt 0:00:00]} 38. Bg7 {[%emt 0:00:24]} (38. fxg6+ $142 fxg6 39. e5 Be3 40. Rxg6 (40. Qxe3 Qg8 41. Bxg6+ Qxg6 42. Rxg6 Kxg6 43. Qe4+ Kf7 44. Qh7+ Kf8 45. Qh8+ Kf7 46. Qg7#) (40. Bxg6+ Kg8 41. Bxe8+ Bg5 42. Rxg5+ hxg5 43. Qxg5+ Rg7 44. Nxg7 Kh7 45. Nf5 Qxf6 46. Qxf6 dxe5 47. Qg7#) 40... Qxf6 41. Nxf6+ Kh8 42. Qxe3 (42. Rxh6+ Kg7 43. Rh7+ Kf8 44. Nxd7+ Kg8 45. Qxe3 Rxe5 46. Qg3+ Rg5 47. Qxg5#) 42... Rh7 43. Qg3 (43. Nxe8 h5 44. exd6 h4 45. Qe5+ Rg7 46. Qxg7#) 43... dxe5 44. Rg8+ Rxg8 45. Qxg8#) 38... Qe7 {[%emt 0:00:00]} 39. Qxh6+ {[%emt 0:00:16] White took control after the opening.   Weighted Error Value: White=0.03 (flawless) /Black=1.00.  Loses game:     	---       	Black=1      Mistake:       	---       	Black=1      Inaccurate:     	---       	Black=3      OK:         	White=10    	Black=5} 1-0